fUSD/lending_fUSD_20260418
["ID","MTS","AMOUNT","RATE_DAILY","PERIOD"]
[420728254,1776495532615,-1217.25,0.00043954,120]
[420728255,1776495532738,-500.0,0.00043954,120]
[420728256,1776495532858,-500.0,0.00043954,120]
[420728257,1776495532978,-1217.25,0.00043954,120]
[420728258,1776495533097,-534.53560866,0.00043954,120]
[420728259,1776495533214,-1217.25,0.00043954,120]
[420728260,1776495533326,-1217.25,0.00043954,120]
[420728261,1776495533441,-751.33,0.00043954,120]
[420728262,1776495533559,-1217.25,0.00043954,120]
[420728263,1776495533679,-751.33,0.00043954,120]
[420728264,1776495533799,-1217.25,0.00043954,120]
[420728265,1776495533916,-751.33,0.00043954,120]
[420728266,1776495534033,-1217.25,0.00043954,120]
[420728267,1776495534146,-751.33,0.00043954,120]
[420728268,1776495534257,-500.0,0.00043954,120]
[420728269,1776495534372,-1217.25,0.00043954,120]
[420728270,1776495534489,-751.33,0.00043954,120]
[420728271,1776495534608,-516.25111807,0.00043954,120]
[420728272,1776495534726,-1217.25,0.00043954,120]
[420728273,1776495534840,-751.33,0.00043954,120]
[420728274,1776495534958,-500.0,0.00043954,120]
[420728275,1776495535075,-1217.25,0.00043954,120]
[420728276,1776495535193,-751.33,0.00043954,120]
[420728277,1776495535306,-500.0,0.00043954,120]
[420728278,1776495535421,-751.33,0.00043954,120]
[420728279,1776495535540,-500.0,0.00043954,120]
[420728280,1776495535658,-751.33,0.00043954,120]
[420728281,1776495535779,-633.7283611,0.00043954,120]
[420728282,1776495535897,-751.33,0.00043954,120]
[420728283,1776495536018,-751.33,0.00043954,120]
[420728284,1776495536133,-751.33,0.00043954,120]
[420728285,1776495536252,-1217.25,0.00043954,120]
[420728286,1776495536373,-751.33,0.00043954,120]
[420728287,1776495536491,-1217.25,0.00043954,120]
[420728288,1776495536617,-514.58165088,0.00043954,120]
[420728289,1776495536739,-500.0,0.00043954,120]
[420728290,1776495536854,-751.33,0.00043954,120]
[420728291,1776495536972,-62.79399131,0.00043954,120]
[420728292,1776495560997,195.93730931,7.354e-05,30]
[420728293,1776495567479,5000.01,7.062e-05,2]
[420728294,1776495567501,5000.01,7.062e-05,2]
[420728295,1776495567524,5000.01,7.062e-05,2]
[420728296,1776495567546,5000.01,7.062e-05,2]
[420728297,1776495567568,5000.01,7.062e-05,2]
[420728298,1776495567590,5000.01,7.062e-05,2]
[420728299,1776495567612,5000.01,7.062e-05,2]
[420728300,1776495567635,4481.29,7.062e-05,2]
[420728301,1776495567934,243.0,7.062e-05,2]
[420728302,1776495571723,-494.97495455,7.354e-05,2]
[420728303,1776495571735,-189.83620099,7.354e-05,2]
[420728304,1776495571746,-83.24797588,7.354e-05,2]
[420728305,1776495571757,-82.95602412,7.354e-05,2]
[420728306,1776495571767,-377.94,7.401e-05,2]
[420728307,1776495571777,-228.66616,7.5e-05,2]
[420728308,1776495571786,-63.52127463,7.503e-05,2]
[420728309,1776495571798,-900.57872537,7.503e-05,2]
[420728310,1776495571810,-500.0,7.503e-05,2]
[420728311,1776495571830,-500.0,7.503e-05,2]
[420728312,1776495571839,-350.7510145,7.503e-05,2]
[420728313,1776495571849,-500.0,7.503e-05,2]
[420728314,1776495572251,-175.37550725,7.503e-05,2]
[420728315,1776495572260,-500.0,7.503e-05,2]
[420728316,1776495572270,-175.37550725,7.503e-05,2]
[420728317,1776495572279,-500.0,7.503e-05,2]
[420728318,1776495572289,-500.0,7.503e-05,2]
[420728319,1776495572298,-500.0,7.503e-05,2]
[420728320,1776495572308,-500.0,7.503e-05,2]
[420728321,1776495572317,-431.3518261,7.503e-05,2]
[420728322,1776495572327,-500.0,7.503e-05,2]
[420728323,1776495572337,-175.37550725,7.503e-05,2]
[420728324,1776495572347,-500.0,7.503e-05,2]
[420728325,1776495572356,-175.37550725,7.503e-05,2]
[420728326,1776495572366,-150.0,7.504e-05,2]
[420728327,1776495572375,-500.0,7.504e-05,2]
[420728328,1776495572386,-500.0,7.504e-05,2]
[420728329,1776495572396,-85.49502464,7.504e-05,2]
[420728330,1776495572887,-414.50497536,7.504e-05,2]
[420728331,1776495572898,-500.0,7.504e-05,2]
[420728332,1776495572908,-500.0,7.504e-05,2]
[420728333,1776495572918,-500.0,7.504e-05,2]
[420728334,1776495572928,-500.0,7.504e-05,2]
[420728335,1776495572939,-500.0,7.504e-05,2]
[420728336,1776495572949,-500.0,7.504e-05,2]
[420728337,1776495572960,-500.0,7.504e-05,2]
[420728338,1776495572970,-62.66921608,7.504e-05,2]
[420728339,1776495572984,-437.33078392,7.504e-05,2]
[420728340,1776495572994,-500.0,7.504e-05,2]
[420728341,1776495573005,-500.0,7.504e-05,2]
[420728342,1776495573015,-500.0,7.504e-05,2]
[420728343,1776495573026,-500.0,7.504e-05,2]
[420728344,1776495573036,-500.0,7.504e-05,2]
[420728345,1776495573047,-500.0,7.504e-05,2]
[420728346,1776495573057,-500.0,7.504e-05,2]
[420728347,1776495573067,-500.0,7.504e-05,2]
[420728348,1776495573077,-500.0,7.504e-05,2]
[420728349,1776495573087,-500.0,7.504e-05,2]
[420728350,1776495573097,-500.0,7.504e-05,2]
[420728351,1776495573107,-500.0,7.504e-05,2]
[420728352,1776495573117,-500.0,7.504e-05,2]
[420728353,1776495573127,-448.171183,7.504e-05,2]
[420728354,1776495573137,-250.0,7.504e-05,2]
[420728355,1776495573147,-66359.19477741,7.504e-05,2]
[420728356,1776495573159,-42801.13114433,7.504e-05,2]
[420728357,1776495573171,-993.3784,7.504e-05,2]
[420728358,1776495573184,-1079238.56217842,7.504e-05,2]
[420728359,1776495573197,-688.8580236,7.504e-05,2]
[420728360,1776495573209,-644.20590704,7.504e-05,2]
[420728361,1776495573243,-123.8736058,7.504e-05,2]
[420728362,1776495573281,-175.37550725,7.503e-05,2]
[420728363,1776495573291,-500.0,7.503e-05,2]
[420728364,1776495573301,-224.68090817,7.504e-05,2]
[420728365,1776495573318,-2905.53966614,7.504e-05,2]
[420728366,1776495573330,-1939.7938606,7.504e-05,2]
[420728367,1776495573346,-292320.86766377,7.504e-05,2]
[420728368,1776495573455,-5590.0,7.504e-05,2]
[420728369,1776495575185,243.0,7.062e-05,2]
[420728370,1776495576408,200.0,6.878e-05,2]
[420728371,1776495582347,-207.0,0.00013699,30]
[420728372,1776495583000,388.0,7.061e-05,2]
[420728373,1776495583522,8588.22,6.709e-05,2]
[420728374,1776495590123,523.83197898,8.2e-05,10]
[420728375,1776495592455,240.0,6.709e-05,2]
[420728376,1776495669754,168.15,5.786e-05,2]
[420728377,1776495693573,-928.653,7.256e-05,2]
[420728378,1776495693607,-246.0,7.256e-05,2]
[420728379,1776495703531,498.0308,7.254e-05,2]
[420728380,1776495724884,303.0,7.497e-05,30]
[420728381,1776495726282,303.0,7.585e-05,30]
[420728387,1776496023262,274.0,7.497e-05,30]
[420728388,1776496025103,274.0,7.585e-05,30]
[420728389,1776496041824,200.0,6.9e-05,2]
[420728390,1776496043949,400.0,7e-05,2]
[420728393,1776496146047,5012.0,0.000165,120]
[420728394,1776496173949,-150.0,7.353e-05,2]
[420728395,1776496173971,-247.0,7.353e-05,2]
[420728396,1776496173993,-816.96988499,7.36e-05,2]
[420728404,1776496232207,-75101.50361563,7.303e-05,2]
[420728405,1776496232220,-3179.60809647,7.303e-05,2]
[420728406,1776496232232,-11555.05668097,7.303e-05,2]
[420728407,1776496232244,-19298.68410221,7.303e-05,2]
[420728408,1776496232256,-760.0,7.303e-05,2]
[420728409,1776496232418,-547.70912,7.303e-05,2]
[420728427,1776496239073,-106563.64748472,7.303e-05,2]
[420728428,1776496239083,-391.07478362,7.359e-05,2]
[420728429,1776496239095,-4183.03011501,7.36e-05,2]
[420728430,1776496239104,-250.0,7.366e-05,2]
[420728431,1776496239114,-1200.0,7.37e-05,2]
[420728432,1776496239124,-300.0,7.371e-05,2]
[420728433,1776496239134,-1200.0,7.371e-05,2]
[420728434,1776496239143,-300.0,7.371e-05,2]
[420728435,1776496239152,-300.0,7.371e-05,2]
[420728436,1776496239162,-4822.96322782,7.372e-05,2]
[420728437,1776496239171,-250.0,7.378e-05,2]
[420728438,1776496239180,-171.18,7.379e-05,2]
[420728439,1776496239190,-500.0,7.383e-05,2]
[420728440,1776496239199,-500.0,7.383e-05,2]
[420728441,1776496239208,-500.0,7.383e-05,2]
[420728442,1776496239218,-500.0,7.383e-05,2]
[420728443,1776496239227,-210.99979693,7.383e-05,2]
[420728444,1776496239236,-316.58612091,7.383e-05,2]
[420728445,1776496239246,-500.0,7.383e-05,2]
[420728446,1776496239256,-1501.19675547,7.393e-05,2]
[420728447,1776496239266,-151.0,7.401e-05,2]
[420728448,1776496239276,-256.45192907,7.401e-05,2]
[420728449,1776496239286,-150.0,7.402e-05,2]
[420728450,1776496239296,-1141.25417798,7.403e-05,2]
[420728451,1776496239306,-1141.25417798,7.403e-05,2]
[420728452,1776496239316,-1141.25417798,7.403e-05,2]
[420728453,1776496239325,-250.0,7.403e-05,2]
[420728454,1776496239335,-500.0,7.483e-05,2]
[420728455,1776496239344,-303.0,7.495e-05,7]
[420728456,1776496239354,-274.0,7.495e-05,7]
[420728457,1776496239364,-500.0,7.504e-05,2]
[420728458,1776496239373,-500.0,7.504e-05,2]
[420728459,1776496239383,-500.0,7.504e-05,2]
[420728460,1776496239393,-945.97189863,7.504e-05,2]
[420728461,1776496239402,-6540.78486079,7.504e-05,2]
[420728462,1776496239412,-500.0,7.504e-05,2]
[420728463,1776496239421,-500.0,7.504e-05,2]
[420728464,1776496239431,-500.0,7.504e-05,2]
[420728465,1776496239441,-500.0,7.504e-05,2]
[420728466,1776496239450,-500.0,7.504e-05,2]
[420728467,1776496239460,-500.0,7.504e-05,2]
[420728468,1776496239469,-500.0,7.504e-05,2]
[420728469,1776496239479,-500.0,7.504e-05,2]
[420728470,1776496239489,-500.0,7.504e-05,2]
[420728471,1776496239499,-500.0,7.504e-05,2]
[420728472,1776496239508,-500.0,7.504e-05,2]
[420728473,1776496239519,-500.0,7.504e-05,2]
[420728474,1776496239528,-500.0,7.504e-05,2]
[420728475,1776496239538,-150.0,7.504e-05,2]
[420728476,1776496239548,-63061.0877314,7.505e-05,2]
[420728477,1776496239558,-303.0,7.582e-05,7]
[420728478,1776496239568,-274.0,7.582e-05,7]
[420728479,1776496239579,-153.0,7.605e-05,2]
[420728480,1776496239588,-743.0,7.615e-05,2]
[420728481,1776496239598,-1176.0,7.683e-05,2]
[420728482,1776496239607,-1883.0,7.699e-05,2]
[420728483,1776496239617,-447.06276169,7.701e-05,2]
[420728484,1776496239629,-943.93723831,7.701e-05,2]
[420728485,1776496239639,-538.42923807,7.714e-05,2]
[420728486,1776496239745,-1120.57076193,7.714e-05,2]
[420728487,1776496239755,-1185.0,7.717e-05,2]
[420728488,1776496239764,-743.0,7.819e-05,2]
[420728489,1776496239774,-804.0,7.834e-05,2]
[420728490,1776496239784,-1392.0,7.85e-05,2]
[420728491,1776496239794,-428.0,7.862e-05,2]
[420728492,1776496239804,-1280.0,7.865e-05,2]
[420728493,1776496239814,-500.0,7.931e-05,2]
[420728494,1776496239824,-31387.235477,7.945e-05,2]
[420728495,1776496239834,-171.18,7.988e-05,2]
[420728496,1776496239844,-250.0,8.088e-05,2]
[420728497,1776496239854,-5000.0,8.088e-05,2]
[420728498,1776496239865,-1680.0,8.107e-05,2]
[420728499,1776496239875,-300.0,8.108e-05,2]
[420728500,1776496239885,-420.0,8.108e-05,2]
[420728501,1776496239895,-255.0,8.143e-05,2]
[420728502,1776496239905,-21872.51,8.202e-05,2]
[420728503,1776496239915,-161.1,8.219e-05,2]
[420728504,1776496239924,-2000.0,8.219e-05,2]
[420728505,1776496239934,-638.08,8.219e-05,2]
[420728506,1776496239944,-500.0,8.219e-05,2]
[420728507,1776496239955,-1217.84,8.219e-05,2]
[420728508,1776496239964,-154.45,8.22e-05,2]
[420728509,1776496239974,-187.87,8.22e-05,2]
[420728510,1776496239985,-3982.164,8.393e-05,2]
[420728511,1776496239996,-59939.8843,8.393e-05,2]
[420728512,1776496240006,-1825.17,8.421e-05,2]
[420728513,1776496240016,-1600.0,8.424e-05,2]
[420728514,1776496240026,-1629.54377084,8.477e-05,2]
[420728515,1776496240036,-500.0,8.493e-05,2]
[420728516,1776496240045,-166.66,8.521e-05,2]
[420728517,1776496240055,-14070.8306046,8.537e-05,2]
[420728518,1776496240065,-171.18,8.597e-05,2]
[420728519,1776496240076,-168.15,8.68e-05,2]
[420728520,1776496240086,-1194.0,8.723e-05,5]
[420728521,1776496240096,-150.0,8.749e-05,2]
[420728522,1776496240107,-3139.6266862,8.767e-05,2]
[420728523,1776496240117,-500.0,8.767e-05,2]
[420728524,1776496240128,-166.66,8.793e-05,2]
[420728525,1776496240140,-150.0,8.866e-05,5]
[420728526,1776496240150,-150.0,8.914e-05,2]
[420728527,1776496240161,-720.0,8.918e-05,2]
[420728528,1776496240170,-587.0,8.919e-05,2]
[420728529,1776496240181,-409.0,8.957e-05,2]
[420728530,1776496240191,-150.0,9e-05,2]
[420728531,1776496240201,-150.0,9e-05,2]
[420728532,1776496240211,-212.44769369,9.041e-05,2]
[420728533,1776496240220,-166.66,9.065e-05,2]
[420728534,1776496240230,-150.0,9.14e-05,5]
[420728535,1776496240240,-631.0,9.211e-05,5]
[420728536,1776496240250,-1057.0,9.211e-05,5]
[420728537,1776496240260,-2000.0,9.247e-05,2]
[420728538,1776496240270,-166.66,9.338e-05,2]
[420728539,1776496240280,-150.0,9.414e-05,5]
[420728540,1776496240295,-1600.0,9.477e-05,2]
[420728541,1776496240305,-161.1,9.589e-05,2]
[420728543,1776496240316,-166.66,9.61e-05,2]
[420728544,1776496240327,-171.40004545,9.688e-05,5]
[420728545,1776496240337,-823.0,9.81e-05,2]
[420728546,1776496240347,-675.40235721,9.874e-05,2]
[420728547,1776496240360,-648.14764279,9.874e-05,2]
[420728548,1776496240370,-1355.06,9.874e-05,2]
[420728549,1776496240380,-700.0,9.9e-05,3]
[420728550,1776496240390,-250.0,9.943e-05,2]
[420728551,1776496240401,-11912.06556877,9.991e-05,2]
[420728552,1776496240415,-507.71285999,9.991e-05,2]
[420728553,1776496240744,-151642.44942275,9.991e-05,2]
[420728554,1776496240754,-155.828,9.999e-05,2]
[420728555,1776496240764,-313.61106299,0.0001,2]
[420728556,1776496240775,-150.56451505,0.0001,2]
[420728557,1776496240785,-150.21419734,0.0001,2]
[420728558,1776496240795,-94693.20645315,0.0001,2]
[420728559,1776496240819,-401.9924952,0.0001,2]
[420728560,1776496240832,-5302.83672427,0.0001,2]
[420728568,1776496243502,-605.72679224,0.0001,2]
[420728569,1776496243556,-374910.00000034,0.0001,2]
[420728570,1776496243611,-4563.99834277,0.0001,2]
[420728571,1776496243623,-500.0,0.0001,2]
[420728572,1776496243667,-300.0,0.0001,2]
[420728579,1776496247390,-2656.61977035,0.0001,2]
[420728580,1776496247713,-11200.88540321,0.0001,2]
[420728581,1776496247725,-1623.30494545,0.0001,2]
[420728582,1776496247928,-1563.0,0.0001,2]
[420728583,1776496247985,-50766.3098969,0.0001,2]
[420728618,1776496538970,-300.0,7.357e-05,2]
[420728619,1776496538995,-1200.0,7.357e-05,2]
[420728620,1776496539019,-150.0,7.357e-05,2]
[420728621,1776496539043,-247.0,7.357e-05,2]
[420728622,1776496539066,-310804.20670126,7.358e-05,2]
[420728623,1776496555230,200.0,7.931e-05,30]
[420728624,1776496555265,48.65215768,7.931e-05,30]
[420728625,1776496582179,2060.12868882,7.357e-05,2]
[420728637,1776497432282,-500.0,7.404e-05,2]
[420728638,1776497432292,-250.0,8.145e-05,2]
[420728639,1776497432301,-250.0,8.145e-05,2]
[420728640,1776497432311,-250.0,8.145e-05,2]
[420728641,1776497432320,-162.35,8.503e-05,2]
[420728642,1776497432329,-496.68,8.582e-05,7]
[420728643,1776497432339,-228.0,8.651e-05,2]
[420728644,1776497432350,-320.33233507,8.651e-05,2]
[420728645,1776497432360,-1600.0,8.72e-05,2]
[420728646,1776497432369,-227.0,8.722e-05,7]
[420728647,1776497432379,-150.0,8.901e-05,2]
[420728648,1776497432388,-150.0,8.901e-05,2]
[420728649,1776497432397,-150.0,8.901e-05,2]
[420728650,1776497432407,-150.0,8.901e-05,2]
[420728651,1776497432417,-372.97823652,8.902e-05,30]
[420728652,1776497432427,-1382.09009037,9e-05,2]
[420728653,1776497432436,-300.0,9.012e-05,2]
[420728654,1776497432446,-300.0,9.012e-05,2]
[420728655,1776497432455,-1200.0,9.012e-05,2]
[420728656,1776497432465,-11430.28667749,9.013e-05,2]
[420728657,1776497432475,-500.0,9.163e-05,2]
[420728658,1776497432484,-150.0,9.175e-05,2]
[420728659,1776497432494,-695.39793187,9.176e-05,2]
[420728660,1776497432504,-871.52604066,9.176e-05,2]
[420728661,1776497432513,-500.0,9.176e-05,2]
[420728662,1776497432522,-743.50770149,9.176e-05,2]
[420728663,1776497432532,-200.0,9.176e-05,2]
[420728664,1776497432542,-1377.42282659,9.176e-05,2]
[420728665,1776497432551,-151.0,9.176e-05,2]
[420728666,1776497432561,-151.0,9.176e-05,2]
[420728667,1776497432570,-201.93286099,9.176e-05,2]
[420728668,1776497432580,-2000.0,9.176e-05,2]
[420728669,1776497432590,-2000.0,9.176e-05,2]
[420728670,1776497432600,-174.61919141,9.176e-05,2]
[420728671,1776497432610,-2000.0,9.176e-05,2]
[420728672,1776497432620,-2000.0,9.176e-05,2]
[420728673,1776497432629,-2000.0,9.176e-05,2]
[420728674,1776497432639,-2000.0,9.176e-05,2]
[420728675,1776497432648,-2000.0,9.176e-05,2]
[420728676,1776497432658,-2000.0,9.176e-05,2]
[420728677,1776497432668,-2000.0,9.176e-05,2]
[420728678,1776497432677,-1500.0,9.176e-05,2]
[420728679,1776497432687,-147924.7939,9.186e-05,2]
[420728680,1776497432696,-18078.2957311,9.197e-05,2]
[420728681,1776497432706,-228.0,9.197e-05,2]
[420728682,1776497432715,-8606.7136525,9.197e-05,2]
[420728683,1776497432724,-162.35,9.211e-05,2]
[420728684,1776497432734,-500.0,9.231e-05,2]
[420728685,1776497432743,-151.0,9.231e-05,2]
[420728686,1776497432752,-320.33233506,9.231e-05,2]
[420728687,1776497432762,-176.16,9.253e-05,2]
[420728688,1776497432771,-2818.7,9.26e-05,2]
[420728689,1776497432781,-29405.8188391,9.273e-05,2]
[420728690,1776497432793,-26667.66084405,9.273e-05,2]
[420728691,1776497432804,-22604.35085877,9.273e-05,2]
[420728692,1776497432814,-500.0,9.286e-05,2]
[420728693,1776497432823,-151.0,9.286e-05,2]
[420728694,1776497432833,-500.0,9.341e-05,2]
[420728695,1776497432843,-151.0,9.341e-05,2]
[420728696,1776497432852,-410.0,9.342e-05,2]
[420728697,1776497432862,-500.0,9.396e-05,2]
[420728698,1776497432871,-500.0,9.396e-05,2]
[420728699,1776497432881,-151.0,9.396e-05,2]
[420728700,1776497432891,-227.0,9.398e-05,7]
[420728701,1776497432900,-1185.52235454,9.439e-05,2]
[420728702,1776497432909,-500.0,9.451e-05,2]
[420728703,1776497432919,-151.0,9.451e-05,2]
[420728704,1776497432929,-500.0,9.506e-05,2]
[420728705,1776497432939,-151.0,9.506e-05,2]
[420728706,1776497432948,-500.0,9.561e-05,2]
[420728707,1776497432958,-151.0,9.561e-05,2]
[420728708,1776497432968,-575.95153195,9.562e-05,2]
[420728709,1776497432977,-500.0,9.616e-05,2]
[420728710,1776497432987,-151.0,9.616e-05,2]
[420728711,1776497432997,-500.0,9.67e-05,2]
[420728712,1776497433006,-500.0,9.671e-05,2]
[420728713,1776497433016,-151.0,9.671e-05,2]
[420728714,1776497433026,-1670.3955,9.716e-05,2]
[420728715,1776497433034,-2060.7145,9.716e-05,2]
[420728716,1776497433044,-771.01748645,9.724e-05,2]
[420728717,1776497433054,-200.0,9.724e-05,2]
[420728718,1776497433063,-1428.38747117,9.724e-05,2]
[420728719,1776497433072,-209.40437684,9.724e-05,2]
[420728720,1776497433082,-181.08010149,9.724e-05,2]
[420728721,1776497433092,-500.0,9.726e-05,2]
[420728722,1776497433101,-151.0,9.726e-05,2]
[420728723,1776497433110,-500.0,9.781e-05,2]
[420728724,1776497433120,-151.0,9.781e-05,2]
[420728725,1776497433129,-2500.0,9.799e-05,2]
[420728726,1776497433138,-5000.0,9.8e-05,2]
[420728727,1776497433147,-1600.0,9.81e-05,2]
[420728728,1776497433157,-907.66,9.811e-05,2]
[420728729,1776497433167,-320.33233506,9.811e-05,2]
[420728730,1776497433176,-18806.0,9.863e-05,2]
[420728731,1776497433185,-502.95671559,9.873e-05,2]
[420728732,1776497433195,-577.11497904,9.873e-05,2]
[420728733,1776497433205,-150.0,9.89e-05,2]
[420728734,1776497433214,-31432.08619148,9.894e-05,2]
[420728735,1776497433223,-442.28541506,9.896e-05,2]
[420728736,1776497433232,-500.0,9.896e-05,2]
[420728737,1776497433242,-371.23397799,9.896e-05,2]
[420728738,1776497433251,-500.0,9.896e-05,2]
[420728739,1776497433261,-500.0,9.896e-05,2]
[420728740,1776497433270,-500.0,9.896e-05,2]
[420728741,1776497433280,-500.0,9.896e-05,2]
[420728742,1776497433290,-500.0,9.896e-05,2]
[420728743,1776497433299,-500.0,9.896e-05,2]
[420728744,1776497433308,-500.0,9.896e-05,2]
[420728745,1776497433318,-500.0,9.896e-05,2]
[420728746,1776497433327,-500.0,9.896e-05,2]
[420728747,1776497433336,-500.0,9.896e-05,2]
[420728748,1776497433346,-500.0,9.896e-05,2]
[420728749,1776497433356,-500.0,9.896e-05,2]
[420728750,1776497433365,-500.0,9.896e-05,2]
[420728751,1776497433375,-500.0,9.896e-05,2]
[420728752,1776497433384,-500.0,9.896e-05,2]
[420728753,1776497433393,-500.0,9.896e-05,2]
[420728754,1776497433402,-500.0,9.896e-05,2]
[420728755,1776497433411,-500.0,9.896e-05,2]
[420728756,1776497433420,-500.0,9.896e-05,2]
[420728757,1776497433429,-500.0,9.896e-05,2]
[420728758,1776497433439,-500.0,9.896e-05,2]
[420728759,1776497433448,-500.0,9.896e-05,2]
[420728760,1776497433457,-500.0,9.896e-05,2]
[420728761,1776497433466,-500.0,9.896e-05,2]
[420728762,1776497433475,-500.0,9.896e-05,2]
[420728763,1776497433484,-500.0,9.896e-05,2]
[420728764,1776497433493,-500.0,9.896e-05,2]
[420728765,1776497433502,-500.0,9.896e-05,2]
[420728766,1776497433511,-500.0,9.896e-05,2]
[420728767,1776497433520,-500.0,9.896e-05,2]
[420728768,1776497433529,-500.0,9.896e-05,2]
[420728769,1776497433539,-436.49642873,9.896e-05,2]
[420728770,1776497433547,-594.88155671,9.896e-05,2]
[420728771,1776497433556,-665.17784889,9.896e-05,2]
[420728772,1776497433565,-665.17784889,9.896e-05,2]
[420728773,1776497433574,-665.17784889,9.896e-05,2]
[420728774,1776497433583,-665.17784889,9.896e-05,2]
[420728775,1776497433592,-665.17784889,9.896e-05,2]
[420728776,1776497433601,-665.17784889,9.896e-05,2]
[420728777,1776497433610,-665.17784889,9.896e-05,2]
[420728778,1776497433619,-169.43910872,9.896e-05,2]
[420728779,1776497433632,-495.73874017,9.896e-05,2]
[420728780,1776497433641,-665.17784889,9.896e-05,2]
[420728781,1776497433650,-665.17784889,9.896e-05,2]
[420728782,1776497433659,-665.17784889,9.896e-05,2]
[420728783,1776497433668,-665.17784889,9.896e-05,2]
[420728784,1776497433677,-665.17784889,9.896e-05,2]
[420728785,1776497433687,-665.17784889,9.896e-05,2]
[420728786,1776497433696,-665.17784889,9.896e-05,2]
[420728787,1776497433705,-665.17784889,9.896e-05,2]
[420728788,1776497433714,-665.17784889,9.896e-05,2]
[420728789,1776497433724,-665.17784889,9.896e-05,2]
[420728790,1776497433733,-665.17784889,9.896e-05,2]
[420728791,1776497433742,-665.17784889,9.896e-05,2]
[420728792,1776497433751,-665.17784889,9.896e-05,2]
[420728793,1776497433760,-665.17784889,9.896e-05,2]
[420728794,1776497433769,-665.17784889,9.896e-05,2]
[420728795,1776497433779,-665.17784889,9.896e-05,2]
[420728796,1776497433788,-665.17784889,9.896e-05,2]
[420728797,1776497433797,-665.17784889,9.896e-05,2]
[420728798,1776497433806,-665.17784889,9.896e-05,2]
[420728799,1776497433815,-665.17784889,9.896e-05,2]
[420728800,1776497433824,-665.17784889,9.896e-05,2]
[420728801,1776497433833,-665.17784889,9.896e-05,2]
[420728802,1776497433843,-665.17784889,9.896e-05,2]
[420728803,1776497433852,-665.17784889,9.896e-05,2]
[420728804,1776497433861,-665.17784889,9.896e-05,2]
[420728805,1776497433870,-665.17784889,9.896e-05,2]
[420728806,1776497433879,-665.17784889,9.896e-05,2]
[420728807,1776497433889,-665.17784889,9.896e-05,2]
[420728808,1776497433898,-665.17784889,9.896e-05,2]
[420728809,1776497433907,-665.17784889,9.896e-05,2]
[420728810,1776497433916,-662.01033531,9.896e-05,2]
[420728811,1776497433925,-662.01033531,9.896e-05,2]
[420728812,1776497433934,-662.01033531,9.896e-05,2]
[420728813,1776497433943,-662.01033531,9.896e-05,2]
[420728814,1776497433953,-662.01033531,9.896e-05,2]
[420728815,1776497433962,-662.01033531,9.896e-05,2]
[420728816,1776497433971,-662.01033531,9.896e-05,2]
[420728817,1776497433980,-662.01033531,9.896e-05,2]
[420728818,1776497433989,-662.01033531,9.896e-05,2]
[420728819,1776497433998,-662.01033531,9.896e-05,2]
[420728820,1776497434007,-662.01033531,9.896e-05,2]
[420728821,1776497434016,-662.01033531,9.896e-05,2]
[420728822,1776497434026,-662.01033531,9.896e-05,2]
[420728823,1776497434035,-662.01033531,9.896e-05,2]
[420728824,1776497434044,-662.01033531,9.896e-05,2]
[420728825,1776497434054,-662.01033531,9.896e-05,2]
[420728826,1776497434063,-662.01033531,9.896e-05,2]
[420728827,1776497434072,-662.01033531,9.896e-05,2]
[420728828,1776497434081,-662.01033531,9.896e-05,2]
[420728829,1776497434090,-662.01033531,9.896e-05,2]
[420728830,1776497434100,-662.01033531,9.896e-05,2]
[420728831,1776497434109,-250.0,9.897e-05,2]
[420728832,1776497434118,-283.28160296,9.899e-05,2]
[420728833,1776497434128,-500.0,9.899e-05,2]
[420728834,1776497434136,-500.0,9.899e-05,2]
[420728835,1776497434146,-438.79200211,9.899e-05,2]
[420728836,1776497434155,-500.0,9.899e-05,2]
[420728837,1776497434164,-500.0,9.899e-05,2]
[420728838,1776497434173,-500.0,9.899e-05,2]
[420728839,1776497434182,-500.0,9.899e-05,2]
[420728840,1776497434191,-328.64380682,9.899e-05,2]
[420728841,1776497434201,-500.0,9.899e-05,2]
[420728842,1776497434210,-150.0,9.899e-05,2]
[420728843,1776497434219,-770.0,9.9e-05,5]